[Event "*** Titled Tuesday Blitz"]
[Site "Chess.com"]
[Date "2020.05.26"]
[Round "6"]
[White "I_Hit_18K_on_BS"]
[Black "larisakalinina"]
[Result "1-0"]
[WhiteElo "2083"]
[BlackElo "1945"]
[TimeControl "180+1"]
[EndTime "11:07:44 PDT"]
[Termination "I_Hit_18K_on_BS won on time"]

1. e4 {[%clk 0:03:00.9]} 1... c5 {[%clk 0:02:59.9]} 2. Nf3 {[%clk 0:02:58.9]}
2... Nc6 {[%clk 0:02:59.8]} 3. d4 {[%clk 0:02:58.6]} 3... cxd4 {[%clk
0:02:59.3]} 4. Nxd4 {[%clk 0:02:59.5]} 4... Nf6 {[%clk 0:02:58.8]} 5. Nc3 {[%clk
0:02:57.5]} 5... d6 {[%clk 0:02:58.8]} 6. Bg5 {[%clk 0:02:30.5]} 6... Bd7 {[%clk
0:02:56.1]} 7. Bxf6 {[%clk 0:02:23.8]} 7... gxf6 {[%clk 0:02:54.7]} 8. Bc4
{[%clk 0:02:24.1]} 8... Ne5 {[%clk 0:02:31]} 9. Bb3 {[%clk 0:02:13.8]} 9... Rg8
{[%clk 0:02:16.8]} 10. Qh5 {[%clk 0:02:05.1]} 10... Rxg2 {[%clk 0:01:20.5]} 11.
f4 {[%clk 0:01:59.5]} 11... Ng6 {[%clk 0:01:12.9]} 12. Qxh7 {[%clk 0:01:50.7]}
12... e6 {[%clk 0:00:56.6]} 13. f5 {[%clk 0:01:34.4]} 13... Ne5 {[%clk
0:00:47.2]} 14. Nxe6 {[%clk 0:01:11.2]} 14... Qb6 {[%clk 0:00:25.6]} 15. O-O-O
{[%clk 0:00:58.2]} 15... fxe6 {[%clk 0:00:20.3]} 16. fxe6 {[%clk 0:00:55.4]}
16... Bc6 {[%clk 0:00:18.7]} 17. Nd5 {[%clk 0:00:27.3]} 17... Bxd5 {[%clk
0:00:16]} 18. Rxd5 {[%clk 0:00:28.2]} 18... O-O-O {[%clk 0:00:15.2]} 19. e7
{[%clk 0:00:20.5]} 19... Qe3+ {[%clk 0:00:11.6]} 20. Kd1 {[%clk 0:00:12.7]}
20... Rg1+ {[%clk 0:00:10.5]} 21. Rxg1 {[%clk 0:00:11.9]} 21... Qxg1+ {[%clk
0:00:10.7]} 22. Ke2 {[%clk 0:00:07.9]} 22... Qg4+ {[%clk 0:00:10.1]} 23. Ke3
{[%clk 0:00:06.2]} 23... Qf3+ {[%clk 0:00:09.3]} 24. Kd4 {[%clk 0:00:05.3]}
24... Qf2+ {[%clk 0:00:08.7]} 25. Kc3 {[%clk 0:00:05.1]} 25... Qe3+ {[%clk
0:00:08.2]} 26. Rd3 {[%clk 0:00:03.7]} 26... Qc5+ {[%clk 0:00:06.5]} 27. Kd2
{[%clk 0:00:03.1]} 27... Bxe7 {[%clk 0:00:06.5]} 28. Qxe7 {[%clk 0:00:01.8]}
28... Nxd3 {[%clk 0:00:05.8]} 29. Be6+ {[%clk 0:00:02.2]} 29... Kb8 {[%clk
0:00:03.5]} 30. Qxd8+ {[%clk 0:00:01.2]} 1-0

[Event "*** Titled Tuesday Blitz"]
[Site "Chess.com"]
[Date "2020.05.26"]
[Round "6"]
[White "Witik"]
[Black "archess2"]
[Result "0-1"]
[WhiteElo "2651"]
[BlackElo "2300"]
[TimeControl "180+1"]
[EndTime "11:07:45 PDT"]
[Termination "archess2 won on time"]

1. d4 {[%clk 0:03:00.9]} 1... d5 {[%clk 0:02:53.2]} 2. Bf4 {[%clk 0:02:59.9]}
2... c5 {[%clk 0:02:50.8]} 3. e3 {[%clk 0:02:59.4]} 3... cxd4 {[%clk 0:02:44.3]}
4. exd4 {[%clk 0:02:58.8]} 4... Nc6 {[%clk 0:02:44.9]} 5. c3 {[%clk 0:02:58.7]}
5... Nf6 {[%clk 0:02:44.9]} 6. Bd3 {[%clk 0:02:56.9]} 6... Bg4 {[%clk
0:02:44.5]} 7. Qb3 {[%clk 0:02:56.3]} 7... Na5 {[%clk 0:02:33.7]} 8. Qa4+ {[%clk
0:02:55.5]} 8... Bd7 {[%clk 0:02:32.8]} 9. Qc2 {[%clk 0:02:54.6]} 9... Nh5
{[%clk 0:02:32.1]} 10. Be3 {[%clk 0:02:40.5]} 10... e6 {[%clk 0:02:20.3]} 11.
Nd2 {[%clk 0:02:37.4]} 11... Qc7 {[%clk 0:02:18.8]} 12. Nh3 {[%clk 0:02:28.7]}
12... Nc6 {[%clk 0:02:16.7]} 13. O-O {[%clk 0:02:26.1]} 13... Bd6 {[%clk
0:02:11.3]} 14. f4 {[%clk 0:02:20.3]} 14... Rc8 {[%clk 0:02:06.3]} 15. Qd1
{[%clk 0:02:09.8]} 15... Nf6 {[%clk 0:02:02.1]} 16. Rc1 {[%clk 0:01:41.9]} 16...
Qb6 {[%clk 0:01:53.5]} 17. Rc2 {[%clk 0:01:34.7]} 17... Na5 {[%clk 0:01:46.3]}
18. Qe2 {[%clk 0:01:33.5]} 18... h6 {[%clk 0:01:42]} 19. Kh1 {[%clk 0:01:24.4]}
19... Ba4 {[%clk 0:01:39.3]} 20. b3 {[%clk 0:01:24.2]} 20... Bd7 {[%clk
0:01:37.5]} 21. Ng1 {[%clk 0:01:21.7]} 21... Nc6 {[%clk 0:01:28.3]} 22. Ngf3
{[%clk 0:01:19.9]} 22... O-O {[%clk 0:01:26.5]} 23. Ne5 {[%clk 0:01:20.1]} 23...
Qc7 {[%clk 0:01:23.4]} 24. g4 {[%clk 0:01:04.4]} 24... Ne8 {[%clk 0:01:18.4]}
25. Ndf3 {[%clk 0:00:58.1]} 25... f6 {[%clk 0:01:17]} 26. Ng6 {[%clk 0:00:57.7]}
26... Rf7 {[%clk 0:01:15.5]} 27. Nfh4 {[%clk 0:00:40.2]} 27... e5 {[%clk
0:01:08.8]} 28. fxe5 {[%clk 0:00:39.8]} 28... fxe5 {[%clk 0:01:06.6]} 29. Rxf7
{[%clk 0:00:39.9]} 29... Kxf7 {[%clk 0:01:06.6]} 30. g5 {[%clk 0:00:25.5]} 30...
hxg5 {[%clk 0:01:01.1]} 31. Qh5 {[%clk 0:00:24.2]} 31... Nf6 {[%clk 0:01:00]}
32. Nxe5+ {[%clk 0:00:23.3]} 32... Ke7 {[%clk 0:00:59]} 33. Nhg6+ {[%clk
0:00:12.4]} 33... Kd8 {[%clk 0:00:57.3]} 34. Qh8+ {[%clk 0:00:11.9]} 34... Be8
{[%clk 0:00:56.3]} 35. Bxg5 {[%clk 0:00:12.1]} 35... Nxe5 {[%clk 0:00:55.4]} 36.
dxe5 {[%clk 0:00:12.3]} 36... Bxe5 {[%clk 0:00:54.5]} 37. Re2 {[%clk 0:00:12.5]}
37... Qxc3 {[%clk 0:00:52.2]} 38. Rxe5 {[%clk 0:00:09.2]} 38... Qxd3 {[%clk
0:00:48.7]} 39. Bxf6+ {[%clk 0:00:07.7]} 39... Kc7 {[%clk 0:00:42.3]} 40. Re7+
{[%clk 0:00:05.5]} 40... Bd7 {[%clk 0:00:36.5]} 41. Be5+ {[%clk 0:00:04.7]}
41... Kc6 {[%clk 0:00:32.6]} 0-1

[Event "*** Titled Tuesday Blitz"]
[Site "Chess.com"]
[Date "2020.05.26"]
[Round "6"]
[White "Gurvich_Vitaly"]
[Black "Nastya_Rakhmangulova"]
[Result "1-0"]
[WhiteElo "2552"]
[BlackElo "2308"]
[TimeControl "180+1"]
[EndTime "11:07:45 PDT"]
[Termination "Gurvich_Vitaly won on time"]

1. e4 {[%clk 0:02:51.6]} 1... d5 {[%clk 0:02:59.8]} 2. d3 {[%clk 0:02:49.3]}
2... dxe4 {[%clk 0:02:59.5]} 3. dxe4 {[%clk 0:02:50.2]} 3... Qxd1+ {[%clk
0:02:59.6]} 4. Kxd1 {[%clk 0:02:49.9]} 4... e5 {[%clk 0:03:00.5]} 5. Nf3 {[%clk
0:02:45.3]} 5... Bd6 {[%clk 0:03:00.5]} 6. Ne1 {[%clk 0:02:44.9]} 6... Be6
{[%clk 0:02:56.3]} 7. Nd2 {[%clk 0:02:42]} 7... Nd7 {[%clk 0:02:55.7]} 8. Nd3
{[%clk 0:02:42.3]} 8... O-O-O {[%clk 0:02:50.5]} 9. c3 {[%clk 0:02:42.4]} 9...
c6 {[%clk 0:02:50.3]} 10. Kc2 {[%clk 0:02:42.2]} 10... Ngf6 {[%clk 0:02:50.1]}
11. f3 {[%clk 0:02:41.2]} 11... h5 {[%clk 0:02:42.9]} 12. h4 {[%clk 0:02:39.5]}
12... Nh7 {[%clk 0:02:21.1]} 13. Nb3 {[%clk 0:02:35.8]} 13... Nhf8 {[%clk
0:02:11.7]} 14. Be3 {[%clk 0:02:34.8]} 14... f6 {[%clk 0:02:06.3]} 15. a4 {[%clk
0:02:26.5]} 15... b6 {[%clk 0:01:47]} 16. a5 {[%clk 0:02:24.1]} 16... Kb7 {[%clk
0:01:46.2]} 17. Nf2 {[%clk 0:02:17.8]} 17... Bxb3+ {[%clk 0:01:31.8]} 18. Kxb3
{[%clk 0:02:18.7]} 18... Bc5 {[%clk 0:01:32.2]} 19. Bxc5 {[%clk 0:02:16.1]}
19... Nxc5+ {[%clk 0:01:33.1]} 20. Kc2 {[%clk 0:02:15.9]} 20... Nfe6 {[%clk
0:01:29]} 21. Bc4 {[%clk 0:02:14.3]} 21... Rhe8 {[%clk 0:01:17.2]} 22. axb6
{[%clk 0:02:10.7]} 22... axb6 {[%clk 0:01:16.8]} 23. Rhd1 {[%clk 0:02:07.3]}
23... b5 {[%clk 0:01:15.6]} 24. Bf1 {[%clk 0:02:06.6]} 24... Rxd1 {[%clk
0:01:01.3]} 25. Rxd1 {[%clk 0:02:06.2]} 25... Rd8 {[%clk 0:01:01.3]} 26. Re1
{[%clk 0:02:04.2]} 26... Ra8 {[%clk 0:00:52.3]} 27. g3 {[%clk 0:02:00.6]} 27...
Ra2 {[%clk 0:00:48.6]} 28. Bh3 {[%clk 0:01:59.2]} 28... Na4 {[%clk 0:00:39.1]}
29. Nd1 {[%clk 0:01:58.9]} 29... Nec5 {[%clk 0:00:29.4]} 30. Re2 {[%clk
0:01:56.1]} 30... Nb6 {[%clk 0:00:26.6]} 31. Kb1 {[%clk 0:01:51.6]} 31... Ra8
{[%clk 0:00:25.5]} 32. Ne3 {[%clk 0:01:49.5]} 32... Rd8 {[%clk 0:00:24.4]} 33.
Bf5 {[%clk 0:01:45.9]} 33... Nb3 {[%clk 0:00:21.5]} 34. f4 {[%clk 0:01:28.3]}
34... Nc4 {[%clk 0:00:15.6]} 35. Be6 {[%clk 0:01:19]} 35... Nbd2+ {[%clk
0:00:07.7]} 36. Kc2 {[%clk 0:01:17.3]} 36... Nxe4 {[%clk 0:00:04.6]} 37. Nxc4
{[%clk 0:01:15.4]} 37... Nc5 {[%clk 0:00:03.2]} 38. Nxe5 {[%clk 0:00:53.3]}
38... Nxe6 {[%clk 0:00:01.7]} 39. Nxc6 {[%clk 0:00:44.3]} 39... Kxc6 {[%clk
0:00:02.6]} 40. Rxe6+ {[%clk 0:00:44.2]} 40... Kd7 {[%clk 0:00:03.3]} 41. Rb6
{[%clk 0:00:41.3]} 41... Re8 {[%clk 0:00:02]} 42. Rxb5 {[%clk 0:00:40.6]} 42...
Re3 {[%clk 0:00:02.6]} 43. Rxh5 {[%clk 0:00:41]} 43... Rxg3 {[%clk 0:00:02.9]}
44. b4 {[%clk 0:00:41]} 44... Rg4 {[%clk 0:00:02.8]} 45. c4 {[%clk 0:00:35.4]}
45... Rxf4 {[%clk 0:00:01.9]} 46. Kb3 {[%clk 0:00:35.5]} 1-0

[Event "*** Titled Tuesday Blitz"]
[Site "Chess.com"]
[Date "2020.05.26"]
[Round "6"]
[White "GregShahade"]
[Black "Vaathi_Coming"]
[Result "1-0"]
[WhiteElo "2656"]
[BlackElo "2847"]
[TimeControl "180+1"]
[EndTime "11:07:46 PDT"]
[Termination "GregShahade won on time"]

1. e4 {[%clk 0:03:00.9]} 1... c5 {[%clk 0:03:00.1]} 2. Nf3 {[%clk 0:03:00.8]}
2... e6 {[%clk 0:03:00.2]} 3. d4 {[%clk 0:03:00.6]} 3... cxd4 {[%clk 0:03:01.1]}
4. Nxd4 {[%clk 0:03:01]} 4... Nc6 {[%clk 0:03:01.8]} 5. Nc3 {[%clk 0:03:01.3]}
5... Nf6 {[%clk 0:03:02.2]} 6. Ndb5 {[%clk 0:03:00.9]} 6... d6 {[%clk
0:03:02.3]} 7. Bf4 {[%clk 0:03:01.4]} 7... e5 {[%clk 0:03:02.8]} 8. Bg5 {[%clk
0:03:02]} 8... a6 {[%clk 0:03:03.4]} 9. Na3 {[%clk 0:03:02.3]} 9... Be6 {[%clk
0:03:03.4]} 10. Nc4 {[%clk 0:03:01.4]} 10... Rc8 {[%clk 0:03:03.4]} 11. Bd3
{[%clk 0:02:53.6]} 11... Be7 {[%clk 0:02:55.6]} 12. O-O {[%clk 0:02:48.5]} 12...
O-O {[%clk 0:02:53.5]} 13. Ne3 {[%clk 0:02:44.6]} 13... Nd7 {[%clk 0:02:44.1]}
14. Bxe7 {[%clk 0:02:43.9]} 14... Nxe7 {[%clk 0:02:45]} 15. Qd2 {[%clk
0:02:41.6]} 15... Qb6 {[%clk 0:02:41.1]} 16. Rab1 {[%clk 0:02:28.4]} 16... Rfd8
{[%clk 0:02:37.7]} 17. Rfe1 {[%clk 0:02:24.7]} 17... Nf6 {[%clk 0:02:35.6]} 18.
h3 {[%clk 0:02:14.7]} 18... g6 {[%clk 0:02:26.4]} 19. a3 {[%clk 0:02:04.9]}
19... Kg7 {[%clk 0:02:25.8]} 20. Kh2 {[%clk 0:02:01.2]} 20... h5 {[%clk
0:02:25.2]} 21. Nf5+ {[%clk 0:01:51.7]} 21... Bxf5 {[%clk 0:01:15.7]} 22. exf5
{[%clk 0:01:50.8]} 22... Qd4 {[%clk 0:01:07.7]} 23. Qg5 {[%clk 0:01:05.1]} 23...
Rc7 {[%clk 0:00:56.1]} 24. fxg6 {[%clk 0:01:00.4]} 24... fxg6 {[%clk 0:00:41]}
25. Ne2 {[%clk 0:00:57.6]} 25... Qa4 {[%clk 0:00:22.1]} 26. b4 {[%clk
0:00:45.4]} 26... Nh7 {[%clk 0:00:17.2]} 27. Qg3 {[%clk 0:00:42.2]} 27... Rf8
{[%clk 0:00:09.4]} 28. f4 {[%clk 0:00:42.5]} 28... Nf5 {[%clk 0:00:09.7]} 29.
Bxf5 {[%clk 0:00:36.1]} 29... Rxf5 {[%clk 0:00:10.6]} 30. fxe5 {[%clk
0:00:36.6]} 30... dxe5 {[%clk 0:00:11.5]} 31. Nd4 {[%clk 0:00:36]} 31... Rf6
{[%clk 0:00:03.1]} 32. Qxe5 {[%clk 0:00:33.5]} 32... Rf7 {[%clk 0:00:03.1]} 33.
Ne6+ {[%clk 0:00:31.8]} 33... Kh6 {[%clk 0:00:02.6]} 34. Qe3+ {[%clk 0:00:27.1]}
34... g5 {[%clk 0:00:03]} 35. h4 {[%clk 0:00:26.7]} 35... Rg6 {[%clk 0:00:02.9]}
36. Rf1 {[%clk 0:00:22.9]} 36... Rxf1 {[%clk 0:00:02]} 37. Rxf1 {[%clk
0:00:23.1]} 37... Qxc2 {[%clk 0:00:02.2]} 38. hxg5+ {[%clk 0:00:20]} 38... Nxg5
{[%clk 0:00:03.1]} 39. Rf6 {[%clk 0:00:19.8]} 39... Qxg2+ {[%clk 0:00:01.1]} 40.
Kxg2 {[%clk 0:00:17.6]} 1-0

[Event "*** Titled Tuesday Blitz"]
[Site "Chess.com"]
[Date "2020.05.26"]
[Round "6"]
[White "allvim"]
[Black "MomchilPetkov"]
[Result "0-1"]
[WhiteElo "2271"]
[BlackElo "2552"]
[TimeControl "180+1"]
[EndTime "11:07:46 PDT"]
[Termination "MomchilPetkov won by checkmate"]

1. e4 {[%clk 0:03:00.9]} 1... c5 {[%clk 0:02:59.5]} 2. Nf3 {[%clk 0:03:00.7]}
2... d6 {[%clk 0:02:59.7]} 3. d4 {[%clk 0:02:57.1]} 3... cxd4 {[%clk 0:02:59.8]}
4. Nxd4 {[%clk 0:02:58]} 4... Nf6 {[%clk 0:02:59.3]} 5. Nc3 {[%clk 0:02:58.6]}
5... a6 {[%clk 0:02:59.6]} 6. h3 {[%clk 0:02:59.1]} 6... e6 {[%clk 0:02:55.1]}
7. g4 {[%clk 0:02:57.8]} 7... Be7 {[%clk 0:02:55.4]} 8. Bg2 {[%clk 0:02:58]}
8... Nfd7 {[%clk 0:02:53.3]} 9. O-O {[%clk 0:02:58.2]} 9... O-O {[%clk
0:02:49.9]} 10. Nde2 {[%clk 0:02:58.5]} 10... Qc7 {[%clk 0:02:45.6]} 11. Be3
{[%clk 0:02:57.8]} 11... b5 {[%clk 0:02:45.6]} 12. a3 {[%clk 0:02:57.1]} 12...
Bb7 {[%clk 0:02:45.7]} 13. Ng3 {[%clk 0:02:57.8]} 13... Nc6 {[%clk 0:02:45.1]}
14. f4 {[%clk 0:02:57.1]} 14... Na5 {[%clk 0:02:44.7]} 15. f5 {[%clk 0:02:44.9]}
15... Nc4 {[%clk 0:02:42.9]} 16. Bc1 {[%clk 0:02:37]} 16... d5 {[%clk
0:02:33.6]} 17. Bf4 {[%clk 0:01:55.7]} 17... Bd6 {[%clk 0:02:17.9]} 18. Bxd6
{[%clk 0:01:44.4]} 18... Qxd6 {[%clk 0:02:16.6]} 19. Qe1 {[%clk 0:01:27.8]}
19... d4 {[%clk 0:01:53]} 20. e5 {[%clk 0:01:12.2]} 20... Qb6 {[%clk 0:01:27.7]}
21. Nce4 {[%clk 0:01:11.4]} 21... exf5 {[%clk 0:00:58.8]} 22. Nxf5 {[%clk
0:00:58.7]} 22... Ndxe5 {[%clk 0:00:56.9]} 23. Qh4 {[%clk 0:00:44.4]} 23... Ng6
{[%clk 0:00:47.3]} 24. Qg5 {[%clk 0:00:33]} 24... Bxe4 {[%clk 0:00:37.2]} 25.
Bxe4 {[%clk 0:00:31.1]} 25... Rae8 {[%clk 0:00:35.6]} 26. Bd3 {[%clk 0:00:26]}
26... Ne3 {[%clk 0:00:30.1]} 27. Rf2 {[%clk 0:00:18.8]} 27... Qc7 {[%clk
0:00:21.3]} 28. Rc1 {[%clk 0:00:14.3]} 28... Re5 {[%clk 0:00:20.5]} 29. h4
{[%clk 0:00:05.7]} 29... Rfe8 {[%clk 0:00:15.6]} 30. h5 {[%clk 0:00:05.7]} 30...
f6 {[%clk 0:00:14.1]} 31. Nh6+ {[%clk 0:00:03.5]} 31... Kh8 {[%clk 0:00:10.2]}
32. Qxg6 {[%clk 0:00:02.2]} 32... hxg6 {[%clk 0:00:09.9]} 33. hxg6 {[%clk
0:00:03.1]} 33... gxh6 {[%clk 0:00:10]} 34. Rh2 {[%clk 0:00:03.6]} 34... Rh5
{[%clk 0:00:09.7]} 35. Rh4 {[%clk 0:00:02.5]} 35... Qg3+ {[%clk 0:00:10]} 36.
Kh1 {[%clk 0:00:01.9]} 36... Qg2# {[%clk 0:00:10.3]} 0-1

[Event "*** Titled Tuesday Blitz"]
[Site "Chess.com"]
[Date "2020.05.26"]
[Round "6"]
[White "RobPeresian"]
[Black "ThePatrick27"]
[Result "0-1"]
[WhiteElo "2312"]
[BlackElo "2562"]
[TimeControl "180+1"]
[EndTime "11:07:46 PDT"]
[Termination "ThePatrick27 won by checkmate"]

1. Nf3 {[%clk 0:03:00.9]} 1... Nf6 {[%clk 0:03:00.2]} 2. c4 {[%clk 0:03:00.8]}
2... g6 {[%clk 0:03:00.5]} 3. Nc3 {[%clk 0:03:00.8]} 3... Bg7 {[%clk 0:03:01.1]}
4. e4 {[%clk 0:03:00.9]} 4... d6 {[%clk 0:03:01.7]} 5. d4 {[%clk 0:03:01.2]}
5... O-O {[%clk 0:03:02.2]} 6. h3 {[%clk 0:03:01.5]} 6... e5 {[%clk 0:02:56.4]}
7. d5 {[%clk 0:03:01.6]} 7... c6 {[%clk 0:02:54.5]} 8. Bg5 {[%clk 0:03:00.3]}
8... h6 {[%clk 0:02:53.4]} 9. Be3 {[%clk 0:02:59.8]} 9... Na6 {[%clk 0:02:50]}
10. Be2 {[%clk 0:02:58.9]} 10... Qe7 {[%clk 0:02:45.2]} 11. g4 {[%clk
0:02:56.6]} 11... Kh8 {[%clk 0:02:33.7]} 12. Nd2 {[%clk 0:02:56]} 12... Ng8
{[%clk 0:02:24.9]} 13. h4 {[%clk 0:02:33.8]} 13... f5 {[%clk 0:02:21.5]} 14. f3
{[%clk 0:02:27.4]} 14... Nc7 {[%clk 0:02:14.6]} 15. h5 {[%clk 0:02:25.4]} 15...
fxg4 {[%clk 0:02:07.9]} 16. fxg4 {[%clk 0:02:23.6]} 16... g5 {[%clk 0:02:07]}
17. Qc2 {[%clk 0:02:15.7]} 17... Rf4 {[%clk 0:01:59.8]} 18. Bxf4 {[%clk
0:02:12.8]} 18... exf4 {[%clk 0:02:00.7]} 19. O-O-O {[%clk 0:02:06.5]} 19... c5
{[%clk 0:01:58.3]} 20. Rhg1 {[%clk 0:01:58.3]} 20... Nf6 {[%clk 0:01:54.9]} 21.
Bf3 {[%clk 0:01:52.3]} 21... Nd7 {[%clk 0:01:52.9]} 22. Rde1 {[%clk 0:01:17.4]}
22... Ne5 {[%clk 0:01:52.4]} 23. Nd1 {[%clk 0:01:14.7]} 23... b5 {[%clk
0:01:47.4]} 24. Be2 {[%clk 0:01:10.2]} 24... a6 {[%clk 0:01:40.1]} 25. Nf2
{[%clk 0:01:04.1]} 25... Rb8 {[%clk 0:01:39.8]} 26. b3 {[%clk 0:01:00.6]} 26...
a5 {[%clk 0:01:33.7]} 27. cxb5 {[%clk 0:00:57.9]} 27... Nxb5 {[%clk 0:01:31.9]}
28. Bxb5 {[%clk 0:00:57.8]} 28... Rxb5 {[%clk 0:01:32.8]} 29. Nc4 {[%clk
0:00:48.7]} 29... Rb4 {[%clk 0:01:24.4]} 30. Nxe5 {[%clk 0:00:44.9]} 30... Bxe5
{[%clk 0:01:15.9]} 31. Nd3 {[%clk 0:00:39.4]} 31... Ba6 {[%clk 0:01:13.2]} 32.
Nxb4 {[%clk 0:00:36.2]} 32... axb4 {[%clk 0:01:14.1]} 33. Rg2 {[%clk 0:00:28.5]}
33... Bb5 {[%clk 0:01:14.1]} 34. Rf2 {[%clk 0:00:25.5]} 34... Qa7 {[%clk
0:01:13.7]} 35. Rf3 {[%clk 0:00:24]} 35... Qa3+ {[%clk 0:01:11.2]} 36. Kb1
{[%clk 0:00:22.1]} 36... Kg7 {[%clk 0:01:07]} 37. Rd1 {[%clk 0:00:20.2]} 37...
Kf6 {[%clk 0:01:07.2]} 38. Rd2 {[%clk 0:00:20.2]} 38... Ba6 {[%clk 0:01:06.3]}
39. Qc1 {[%clk 0:00:18.6]} 39... Qa5 {[%clk 0:01:04.4]} 40. Rc2 {[%clk
0:00:16.4]} 40... Bb5 {[%clk 0:01:04]} 41. Rc4 {[%clk 0:00:16.5]} 41... Qa6
{[%clk 0:01:00.3]} 42. a3 {[%clk 0:00:15]} 42... bxa3 {[%clk 0:00:59.5]} 43. Ka2
{[%clk 0:00:14.4]} 43... Bb2 {[%clk 0:00:55.5]} 44. Qc2 {[%clk 0:00:06.7]} 44...
Bxc4 {[%clk 0:00:54.3]} 45. e5+ {[%clk 0:00:03.3]} 45... Bxe5 {[%clk 0:00:51.5]}
46. Qg6+ {[%clk 0:00:02.7]} 46... Ke7 {[%clk 0:00:51.6]} 47. Qe6+ {[%clk
0:00:02.6]} 47... Kd8 {[%clk 0:00:51.5]} 48. bxc4 {[%clk 0:00:01.2]} 48... Qxc4+
{[%clk 0:00:50]} 49. Rb3 {[%clk 0:00:01.3]} 49... Qc2+ {[%clk 0:00:49.6]} 50.
Kxa3 {[%clk 0:00:01.7]} 50... Qc1+ {[%clk 0:00:49.2]} 51. Ka4 {[%clk 0:00:01.5]}
51... Qc4+ {[%clk 0:00:46.1]} 52. Ka3 {[%clk 0:00:01.7]} 52... Qa6# {[%clk
0:00:46.1]} 0-1

[Event "*** Titled Tuesday Blitz"]
[Site "Chess.com"]
[Date "2020.05.26"]
[Round "6"]
[White "LedakovAlexandr"]
[Black "tylityli"]
[Result "1-0"]
[WhiteElo "2508"]
[BlackElo "2299"]
[TimeControl "180+1"]
[EndTime "11:07:46 PDT"]
[Termination "LedakovAlexandr won by resignation"]

1. d4 {[%clk 0:03:00.9]} 1... Nf6 {[%clk 0:02:58.2]} 2. Nf3 {[%clk 0:03:00.2]}
2... d5 {[%clk 0:02:57.9]} 3. c4 {[%clk 0:02:52.1]} 3... dxc4 {[%clk 0:02:56.6]}
4. Qa4+ {[%clk 0:02:51.2]} 4... Nbd7 {[%clk 0:02:51.5]} 5. g3 {[%clk 0:02:50.4]}
5... c6 {[%clk 0:02:49.1]} 6. Qxc4 {[%clk 0:02:48.7]} 6... Nb6 {[%clk
0:02:48.2]} 7. Qc2 {[%clk 0:02:47.2]} 7... Bg4 {[%clk 0:02:45.4]} 8. Bg2 {[%clk
0:02:30.3]} 8... e6 {[%clk 0:02:43.9]} 9. O-O {[%clk 0:02:29.5]} 9... Bf5 {[%clk
0:02:28.9]} 10. Qd1 {[%clk 0:02:27.3]} 10... Be7 {[%clk 0:02:26.1]} 11. b3
{[%clk 0:02:16.8]} 11... h6 {[%clk 0:02:25.5]} 12. Bb2 {[%clk 0:02:17.1]} 12...
O-O {[%clk 0:02:25.3]} 13. Nbd2 {[%clk 0:02:15.1]} 13... Ne4 {[%clk 0:02:22.7]}
14. Nc4 {[%clk 0:02:12.6]} 14... Nd5 {[%clk 0:02:14.4]} 15. Rc1 {[%clk
0:02:08.8]} 15... a5 {[%clk 0:02:09.6]} 16. a3 {[%clk 0:02:05.4]} 16... Re8
{[%clk 0:02:06.7]} 17. Nfd2 {[%clk 0:02:00.2]} 17... Nxd2 {[%clk 0:02:01.4]} 18.
Nxd2 {[%clk 0:02:01.1]} 18... Bg4 {[%clk 0:01:50.7]} 19. h3 {[%clk 0:01:59.8]}
19... Bh5 {[%clk 0:01:50.2]} 20. g4 {[%clk 0:01:51.7]} 20... Bg6 {[%clk
0:01:49.2]} 21. e3 {[%clk 0:01:52.2]} 21... Bd6 {[%clk 0:01:46.1]} 22. Nc4
{[%clk 0:01:49.8]} 22... Bc7 {[%clk 0:01:45.8]} 23. Ne5 {[%clk 0:01:49.6]} 23...
Bxe5 {[%clk 0:01:38.9]} 24. dxe5 {[%clk 0:01:50.5]} 24... Qh4 {[%clk 0:01:32.5]}
25. Rc4 {[%clk 0:01:27.6]} 25... Qe7 {[%clk 0:01:09.4]} 26. Qe2 {[%clk
0:01:23.8]} 26... Nb6 {[%clk 0:01:07.4]} 27. Rd4 {[%clk 0:01:21.1]} 27... Red8
{[%clk 0:00:58.5]} 28. f4 {[%clk 0:01:15.4]} 28... Rxd4 {[%clk 0:00:51.5]} 29.
exd4 {[%clk 0:01:15.1]} 29... a4 {[%clk 0:00:49]} 30. f5 {[%clk 0:01:13]} 30...
Bh7 {[%clk 0:00:40]} 31. b4 {[%clk 0:01:00.8]} 31... Nd5 {[%clk 0:00:35.9]} 32.
Qf2 {[%clk 0:00:51.9]} 32... Qg5 {[%clk 0:00:29.7]} 33. Bc1 {[%clk 0:00:50.1]}
33... Qd8 {[%clk 0:00:25]} 34. fxe6 {[%clk 0:00:44.8]} 34... fxe6 {[%clk
0:00:20]} 35. Qf7+ {[%clk 0:00:45.2]} 35... Kh8 {[%clk 0:00:20]} 36. Qxb7 {[%clk
0:00:44]} 36... Rc8 {[%clk 0:00:17.8]} 37. Rf7 {[%clk 0:00:39.5]} 37... Rc7
{[%clk 0:00:17.3]} 38. Rxc7 {[%clk 0:00:38.1]} 38... Qxc7 {[%clk 0:00:16.8]} 39.
Qxc7 {[%clk 0:00:36.5]} 39... Nxc7 {[%clk 0:00:17]} 40. Bxc6 {[%clk 0:00:35.6]}
40... Bc2 {[%clk 0:00:16.5]} 41. b5 {[%clk 0:00:31.9]} 41... Nd5 {[%clk
0:00:15.3]} 42. Bxd5 {[%clk 0:00:23.2]} 42... exd5 {[%clk 0:00:14.9]} 43. b6
{[%clk 0:00:23.2]} 1-0